fUST/lending_fUST_20250920
["ID","MTS","AMOUNT","RATE_DAILY","PERIOD"]
[386506866,1758325841148,-151.0,0.0002661,2]
[386506867,1758325841157,-588.51,0.0002661,7]
[386506868,1758325841166,-155.09,0.0002661,7]
[386506869,1758325841177,-280.0,0.00026695,2]
[386506870,1758325841187,-588.51,0.0002671,7]
[386506871,1758325841196,-155.09,0.0002671,7]
[386506872,1758325841206,-190.0,0.00026721,2]
[386506873,1758325841215,-511.97,0.00026751,2]
[386506874,1758325841225,-1682.92,0.00026752,2]
[386506875,1758325841234,-588.51,0.0002681,7]
[386506876,1758325841244,-155.09,0.0002681,7]
[386506877,1758325841253,-190.0,0.00026852,2]
[386506878,1758325841263,-175.77017753,0.00026884,2]
[386506879,1758325841272,-500.0,0.00026884,2]
[386506880,1758325841281,-500.0,0.00026884,2]
[386506881,1758325841291,-293.97996017,0.00026884,2]
[386506882,1758325841300,-248.58799711,0.00026884,2]
[386506883,1758325841309,-500.0,0.00026884,2]
[386506884,1758325841319,-298.30891944,0.00026884,2]
[386506885,1758325841328,-588.51,0.0002691,7]
[386506887,1758325841338,-155.09,0.0002691,7]
[386506888,1758325841347,-588.51,0.0002701,7]
[386506889,1758325841357,-155.09,0.0002701,7]
[386506891,1758325841366,-952.0,0.00027013,7]
[386506892,1758325841375,-511.97,0.00027025,2]
[386506894,1758325841384,-1682.92,0.00027026,2]
[386506895,1758325841394,-588.51,0.0002711,7]
[386506897,1758325841404,-155.09,0.0002711,7]
[386506899,1758325841413,-500.0,0.00027158,2]
[386506901,1758325841423,-500.0,0.00027158,2]
[386506903,1758325841432,-500.0,0.00027158,2]
[386506905,1758325841441,-190.0,0.00027195,2]
[386506907,1758325841451,-588.51,0.0002721,7]
[386506909,1758325841461,-155.09,0.0002721,7]
[386506911,1758325841470,-511.97,0.00027299,2]
[386506913,1758325841482,-1682.92,0.00027299,2]
[386506915,1758325841491,-588.51,0.0002731,7]
[386506917,1758325841500,-155.12731143,0.0002731,7]
[386506919,1758325841510,-190.0,0.00027325,2]
[386506921,1758325841519,-160.6385961,0.00027397,2]
[386506923,1758325841529,-150.0,0.00027397,5]
[386506925,1758325841538,-588.51,0.0002741,15]
[386506927,1758325841548,-190.0,0.00027426,2]
[386506929,1758325841557,-500.0,0.00027432,2]
[386506931,1758325841567,-500.0,0.00027432,2]
[386506933,1758325841576,-514.31691441,0.00027432,2]
[386506934,1758325841586,-952.0,0.00027484,2]
[386506937,1758325841595,-1652.79,0.000275,7]
[386506938,1758325841605,-190.0,0.00027504,7]
[386506940,1758325841614,-162.53,0.00027509,7]
[386506942,1758325841623,-588.51,0.0002751,15]
[386506944,1758325841632,-500.0,0.00027514,2]
[386506946,1758325841641,-511.99544038,0.00027573,2]
[386506948,1758325841651,-1683.0677937,0.00027573,2]
[386506950,1758325841660,-995.27524671,0.00027574,2]
[386506952,1758325841669,-800.0,0.00027593,2]
[386506954,1758325841679,-500.0,0.00027608,2]
[386506956,1758325841688,-588.51,0.0002761,15]
[386506958,1758325841697,-250.0,0.00027612,2]
[386506960,1758325841706,-500.0,0.00027622,2]
[386506962,1758325841716,-150.0,0.00027635,2]
[386506964,1758325841725,-168.0,0.00027647,2]
[386506966,1758325841736,-219.28654424,0.00027671,8]
[386506968,1758325841745,-500.0,0.00027706,2]
[386506970,1758325841754,-500.0,0.00027706,2]
[386506972,1758325841764,-168.0,0.00027709,2]
[386506974,1758325841773,-588.51,0.0002771,15]
[386506976,1758325841782,-500.0,0.00027721,2]
[386506978,1758325841792,-300.0,0.000278,5]
[386506980,1758325841801,-800.0,0.00027809,2]
[386506982,1758325841810,-588.51,0.0002781,15]
[386506984,1758325841819,-800.0,0.00027881,2]
[386506986,1758325841829,-800.0,0.00027887,2]
[386506988,1758325841839,-500.0,0.00027906,2]
[386506990,1758325841849,-588.51,0.0002791,15]
[386506992,1758325841860,-500.0,0.00027926,2]
[386506994,1758325841869,-250.0,0.00027945,5]
[386506996,1758325841879,-800.0,0.00027975,2]
[386506998,1758325841888,-500.0,0.0002798,2]
[386507000,1758325841898,-500.0,0.0002798,2]
[386507002,1758325841907,-500.4444083,0.00027991,2]
[386507003,1758325841918,-1055.04,0.00028,2]
[386507005,1758325841928,-800.0,0.00028002,2]
[386507008,1758325841938,-588.51,0.0002801,15]
[386507009,1758325841948,-800.0,0.00028031,2]
[386507012,1758325841960,-800.0,0.00028037,2]
[386507014,1758325841973,-500.0,0.0002804,2]
[386507016,1758325841986,-800.0,0.0002806,2]
[386507019,1758325841998,-190.0,0.0002806,2]
[386507021,1758325842010,-500.0,0.00028064,2]
[386507023,1758325842021,-190.0,0.00028075,2]
[386507025,1758325842031,-500.0,0.00028084,2]
[386507028,1758325842044,-800.0,0.00028096,2]
[386507030,1758325842055,-500.0,0.00028101,2]
[386507032,1758325842067,-190.0,0.00028106,2]
[386507034,1758325842079,-588.51,0.0002811,15]
[386507037,1758325842093,-800.0,0.00028124,2]
[386507039,1758325842105,-1055.04,0.0002814,2]
[386507041,1758325842116,-190.0,0.00028148,2]
[386507043,1758325842128,-293.85068442,0.00028153,2]
[386507045,1758325842140,-800.0,0.00028158,2]
[386507048,1758325842153,-800.0,0.0002818,2]
[386507050,1758325842164,-588.51,0.0002821,15]
[386507052,1758325842176,-190.0,0.00028211,2]
[386507054,1758325842187,-600.0,0.00028222,2]
[386507056,1758325842199,-500.0,0.00028228,2]
[386507059,1758325842211,-500.0,0.00028254,2]
[386507061,1758325842222,-500.0,0.00028254,2]
[386507063,1758325842233,-163.42770127,0.00028254,2]
[386507065,1758325842246,-163.75081278,0.00028254,2]
[386507067,1758325842257,-151.0,0.00028254,2]
[386507069,1758325842268,-499.3,0.00028278,2]
[386507072,1758325842280,-1055.04,0.0002828,2]
[386507074,1758325842290,-500.0,0.00028289,2]
[386507076,1758325842300,-800.0,0.00028302,2]
[386507078,1758325842311,-588.51,0.0002831,15]
[386507080,1758325842321,-500.0,0.00028321,2]
[386507082,1758325842332,-161.84881539,0.00028329,30]
[386507084,1758325842343,-500.0,0.00028346,2]
[386507086,1758325842355,-190.0,0.00028353,2]
[386507089,1758325842367,-500.0,0.00028355,2]
[386507091,1758325842378,-190.0,0.00028371,2]
[386507093,1758325842390,-588.51,0.0002841,15]
[386507095,1758325842402,-1055.04,0.0002842,2]
[386507097,1758325842414,-162.53,0.00028427,30]
[386507100,1758325842426,-500.0,0.00028435,2]
[386507102,1758325842438,-890.40265332,0.00028474,2]
[386507104,1758325842449,-350.0,0.00028493,5]
[386507106,1758325842459,-588.51,0.0002851,15]
[386507108,1758325842470,-190.0,0.00028514,2]
[386507110,1758325842480,-190.0,0.00028515,2]
[386507112,1758325842490,-898.93599219,0.00028516,2]
[386507115,1758325842502,-500.0,0.00028528,2]
[386507117,1758325842516,-500.0,0.00028528,2]
[386507119,1758325842528,-1055.04,0.0002856,2]
[386507122,1758325842540,-500.0,0.00028561,2]
[386507124,1758325842550,-500.0,0.00028576,7]
[386507126,1758325842560,-500.0,0.00028603,2]
[386507128,1758325842571,-588.51,0.0002861,15]
[386507130,1758325842582,-500.0,0.00028636,2]
[386507132,1758325842594,-500.0,0.00028689,2]
[386507134,1758325842605,-1055.04,0.000287,2]
[386507137,1758325842616,-588.51,0.0002871,15]
[386507139,1758325842626,-500.0,0.00028732,2]
[386507141,1758325842636,-500.0,0.00028734,2]
[386507143,1758325842646,-5000.0,0.00028737,20]
[386507145,1758325842657,-5000.0,0.00028737,20]
[386507147,1758325842667,-5000.0,0.00028737,18]
[386507149,1758325842678,-5000.0,0.00028737,19]
[386507151,1758325842691,-5000.0,0.00028737,22]
[386507153,1758325842702,-800.0,0.00028771,2]
[386507155,1758325842713,-500.0,0.00028774,2]
[386507157,1758325842724,-157.0,0.000288,120]
[386507160,1758325842734,-500.0,0.00028802,2]
[386507165,1758325842746,-500.0,0.00028802,2]
[386507167,1758325842756,-445.34630188,0.00028802,2]
[386507169,1758325842767,-1781.38520754,0.00028802,2]
[386507171,1758325842778,-4004.10860025,0.00028802,2]
[386507173,1758325842789,-826.79891166,0.00028802,2]
[386507175,1758325842800,-3303.88845099,0.00028802,2]
[386507178,1758325842811,-639.75126545,0.00028802,2]
[386507180,1758325842821,-2556.44605672,0.00028802,2]
[386507182,1758325842832,-588.51,0.0002881,15]
[386507184,1758325842843,-800.0,0.00028816,2]
[386507186,1758325842858,-1055.04,0.0002884,2]
[386507188,1758325842868,-500.0,0.00028849,2]
[386507190,1758325842880,-588.51,0.0002891,15]
[386507193,1758325842890,-500.0,0.00028912,2]
[386507195,1758325842902,-800.0,0.00028923,2]
[386507198,1758325842913,-500.0,0.00028941,2]
[386507200,1758325842925,-500.0,0.00028959,2]
[386507202,1758325842936,-500.0,0.00028978,2]
[386507204,1758325842947,-1055.04,0.0002898,2]
[386507206,1758325842958,-800.0,0.00028987,2]
[386507209,1758325842969,-588.51,0.0002901,15]
[386507212,1758325842980,-800.0,0.00029019,2]
[386507214,1758325842991,-450.0,0.00029041,5]
[386507216,1758325843002,-166.35424728,0.00029041,120]
[386507219,1758325843013,-500.0,0.00029047,2]
[386507221,1758325843024,-977.0,0.0002907,2]
[386507223,1758325843034,-634.0,0.0002907,2]
[386507225,1758325843045,-2158.0,0.0002907,2]
[386507227,1758325843056,-500.0,0.00029076,2]
[386507229,1758325843067,-500.0,0.00029076,2]
[386507231,1758325843079,-500.0,0.00029109,2]
[386507233,1758325843090,-588.51,0.0002911,15]
[386507235,1758325843101,-1055.04,0.0002912,30]
[386507238,1758325843112,-500.0,0.00029197,2]
[386507239,1758325843122,-588.51,0.0002921,15]
[386507241,1758325843132,-500.0,0.00029235,2]
[386507243,1758325843141,-167.9595501,0.00029237,2]
[386507245,1758325843151,-6111.81689471,0.00029237,2]
[386507248,1758325843160,-1164.86558335,0.00029237,2]
[386507249,1758325843169,-1055.04,0.0002926,30]
[386507251,1758325843179,-500.0,0.00029262,2]
[386507253,1758325843189,-800.0,0.00029264,2]
[386507255,1758325843199,-2000.0,0.000293,2]
[386507257,1758325843208,-2000.0,0.000293,2]
[386507259,1758325843218,-250.0,0.000293,10]
[386507275,1758325843356,-204.831726,0.000293,2]
[386507277,1758325843372,-588.51,0.0002931,15]
[386507279,1758325843382,-167.333707,0.00029336,7]
[386507281,1758325843392,-151.0,0.00029336,7]
[386507283,1758325843401,-151.0,0.00029336,7]
[386507285,1758325843410,-151.0,0.00029336,7]
[386507287,1758325843420,-151.0,0.00029336,7]
[386507289,1758325843429,-151.0,0.00029336,7]
[386507291,1758325843438,-151.0,0.00029336,7]
[386507293,1758325843447,-153.306525,0.00029336,7]
[386507295,1758325843457,-151.0,0.00029336,7]
[386507297,1758325843467,-151.0,0.00029336,7]
[386507299,1758325843476,-151.0,0.00029336,7]
[386507301,1758325843485,-151.0,0.00029336,7]
[386507303,1758325843495,-151.0,0.00029336,7]
[386507305,1758325843505,-151.0,0.00029336,7]
[386507307,1758325843515,-151.0,0.00029336,7]
[386507309,1758325843524,-151.0,0.00029336,7]
[386507311,1758325843534,-151.0,0.00029336,7]
[386507313,1758325843543,-151.0,0.00029336,7]
[386507315,1758325843552,-151.0,0.00029336,7]
[386507317,1758325843562,-151.0,0.00029336,7]
[386507319,1758325843571,-151.0,0.00029337,7]
[386507321,1758325843581,-151.0,0.00029337,7]
[386507323,1758325843591,-151.0,0.00029337,7]
[386507325,1758325843600,-151.0,0.00029337,7]
[386507327,1758325843610,-151.0,0.00029337,7]
[386507329,1758325843619,-151.0,0.00029337,7]
[386507331,1758325843628,-151.0,0.00029337,7]
[386507333,1758325843638,-151.0,0.00029337,7]
[386507335,1758325843647,-166.932687,0.00029337,7]
[386507337,1758325843657,-151.0,0.00029337,7]
[386507339,1758325843666,-151.0,0.00029337,7]
[386507341,1758325843675,-151.0,0.00029337,7]
[386507343,1758325843685,-151.0,0.00029337,7]
[386507345,1758325843694,-151.0,0.00029337,7]
[386507347,1758325843703,-151.0,0.00029337,7]
[386507349,1758325843713,-151.0,0.00029337,7]
[386507350,1758325843722,-151.0,0.00029337,7]
[386507351,1758325843731,-151.0,0.00029337,7]
[386507352,1758325843740,-151.0,0.00029337,7]
[386507353,1758325843750,-151.0,0.00029337,7]
[386507354,1758325843759,-151.0,0.00029337,7]
[386507355,1758325843768,-151.0,0.00029337,7]
[386507357,1758325843778,-151.0,0.00029337,7]
[386507360,1758325843787,-151.000003,0.00029337,7]
[386507363,1758325843797,-151.0,0.00029337,7]
[386507365,1758325843806,-151.0,0.00029337,7]
[386507368,1758325843816,-151.0,0.00029337,7]
[386507370,1758325843825,-151.0,0.00029337,7]
[386507372,1758325843835,-151.0,0.00029337,7]
[386507374,1758325843845,-151.0,0.00029337,7]
[386507376,1758325843858,-151.0,0.00029337,7]
[386507378,1758325843867,-151.0,0.00029337,7]
[386507380,1758325843876,-151.0,0.00029337,7]
[386507382,1758325843886,-151.0,0.00029337,7]
[386507384,1758325843895,-151.0,0.00029337,7]
[386507386,1758325843904,-151.0,0.00029337,7]
[386507388,1758325843913,-151.0,0.00029337,7]
[386507390,1758325843923,-151.0,0.00029337,7]
[386507392,1758325843932,-151.0,0.00029337,7]
[386507394,1758325843942,-151.0,0.00029337,7]
[386507396,1758325843951,-151.0,0.00029337,7]
[386507398,1758325843961,-151.0,0.00029337,7]
[386507400,1758325843971,-151.0,0.00029337,7]
[386507402,1758325843980,-151.0,0.00029337,7]
[386507404,1758325843990,-151.0,0.00029337,7]
[386507406,1758325843999,-151.0,0.00029337,7]
[386507408,1758325844009,-151.0,0.00029337,7]
[386507410,1758325844018,-151.0,0.00029337,7]
[386507412,1758325844027,-151.0,0.00029337,7]
[386507413,1758325844036,-151.0,0.00029337,7]
[386507415,1758325844046,-151.0,0.00029337,7]
[386507417,1758325844055,-151.0,0.00029337,7]
[386507419,1758325844065,-151.0,0.00029337,7]
[386507421,1758325844074,-198.51668,0.00029337,7]
[386507423,1758325844083,-151.0,0.00029337,7]
[386507425,1758325844094,-151.0,0.00029337,7]
[386507427,1758325844106,-151.0,0.00029337,7]
[386507429,1758325844116,-151.0,0.00029337,7]
[386507431,1758325844126,-151.0,0.00029337,7]
[386507433,1758325844135,-151.0,0.00029337,7]
[386507435,1758325844144,-151.0,0.00029337,7]
[386507437,1758325844153,-151.0,0.00029337,7]
[386507440,1758325844163,-151.0,0.00029337,7]
[386507442,1758325844172,-1292.0,0.00029337,120]
[386507444,1758325844182,-5958.46156559,0.00029344,2]
[386507446,1758325844191,-1465397.60550894,0.00029345,20]
[386507448,1758325844209,-31725.15197018,0.00029345,20]
[386507451,1758325844220,-1633.57803835,0.00029345,20]
[386507453,1758325844232,-962.8999974,0.00029345,20]
[386507456,1758325844249,-323.47923333,0.00025794,2]
[386507458,1758325844258,-1978.22076665,0.00029345,20]
[386507677,1758325846431,-203.88057494,0.00021165,2]
[386507679,1758325846441,-160.63599627,0.00021165,2]
[386507681,1758325846450,-480.0,0.00021166,2]
[386507683,1758325846459,-480.0,0.0002144,2]
[386507685,1758325846468,-323.47923333,0.00026976,2]
[386507687,1758325846477,-220.38918424,0.00027397,2]
[386507689,1758325846486,-1169.62487802,0.00029345,20]
[386508923,1758325944696,154.0,0.00024,120]
[386508924,1758325945300,201.85115119,0.000199,2]
[386508925,1758325946103,154.0,0.000265,120]
[386508928,1758325957933,-6492.53029738,0.0002107,2]
[386508929,1758325957964,-10000.01,0.0002107,2]
[386508930,1758325958247,-10000.01,0.0002107,2]
[386508931,1758325958360,-10000.01,0.0002107,2]
[386508932,1758325958777,-10000.01,0.0002107,2]
[386508933,1758325958890,-10000.01,0.0002107,2]
[386508934,1758325958997,-10000.01,0.0002107,2]
[386508935,1758325959131,-10000.01,0.0002107,2]
[386508936,1758325959248,-10000.01,0.0002107,2]
[386508937,1758325959386,-10000.01,0.0002107,2]
[386508938,1758325967858,-10000.01,0.0002107,2]
[386508939,1758325968018,-10000.01,0.0002107,2]
[386508940,1758325977212,-10000.01,0.0002107,2]
[386508941,1758325996076,165.7745662,0.00020328,2]
[386508945,1758326018552,150.0,0.00020269,2]
[386508946,1758326030318,500.0,0.000203,2]
[386508947,1758326042918,500.0,0.000203,2]
[386508948,1758326088862,150.0,0.00020268,2]
[386508949,1758326111561,271.49,0.0002739,120]
[386508950,1758326118056,-160.0,0.00021069,2]
[386508951,1758326118090,-2988.38017865,0.0002107,2]
[386508952,1758326118125,-1703.2496427,0.00021099,20]
[386508953,1758326135746,204.38379967,0.000199,2]
[386508958,1758326155401,150.0,0.00020262,2]
[386508959,1758326161673,505.461025,0.00024,31]
[386508960,1758326170967,9645.62620033,0.00020163,2]
[386508961,1758326170992,354.37379967,0.00020163,2]
[386508962,1758326190280,1122.1387018,0.00020163,2]
[386508964,1758326196571,-669.12349457,0.00021064,2]
[386508965,1758326196602,-300.0,0.00021098,2]
[386508966,1758326196633,-296.7503573,0.00021099,20]
[386508967,1758326196664,-2000.0,0.00021099,20]
[386508968,1758326196699,-1468.26229626,0.00021099,20]
[386508969,1758326221848,150.0,0.00020263,2]
[386508972,1758326236671,212.840238,0.00020164,2]
[386508976,1758326280478,199.347144,0.00020164,2]
[386508977,1758326289771,150.0,0.00020264,2]
[386508979,1758326360827,207.0246078,0.000199,2]
[386508985,1758326413099,-585.48305774,0.00021061,2]
[386508986,1758326413130,-500.0,0.00021061,2]
[386508987,1758326413161,-500.0,0.00021061,2]
[386508988,1758326413194,-1200.0,0.00021097,2]
[386508990,1758326413226,-1200.0,0.00021098,2]
[386508991,1758326413256,-300.0,0.00021098,2]
[386508992,1758326413288,-300.0,0.00021098,2]
[386508993,1758326413318,-300.0,0.00021098,2]
[386508994,1758326426463,150.0,0.0002028,2]
[386508996,1758326494164,150.0,0.0002028,2]
[386509004,1758326563154,213.90243765,0.000199,2]
[386509027,1758326628694,150.0,0.00020269,2]
[386509031,1758326640082,359.5658283,0.00020319,2]
[386509036,1758326695856,150.0,0.0002027,2]
[386509067,1758326833136,-198.26325302,0.00020999,2]
[386509068,1758326833159,-198.26325301,0.00021056,2]
[386509069,1758326833183,-178.85967589,0.00021057,2]
[386509081,1758326913338,171.13047249,0.0002052,2]
[386509105,1758326959107,244.56135686,0.000199,2]
[386509137,1758327027154,150.0,0.00020443,2]
[386509173,1758327032670,-557.76409556,0.00021057,2]
[386509175,1758327032680,-903.94178275,0.00021098,2]
[386509177,1758327032690,-300.0,0.00021098,2]
[386509178,1758327032703,-531.73770374,0.00021099,20]
[386509180,1758327032714,-2000.0,0.00021099,20]
[386509182,1758327032723,-2000.0,0.00021099,20]
[386509184,1758327032735,-388.057,0.00021099,20]
[386509186,1758327032745,-506.512,0.00021099,20]
[386509188,1758327032754,-160.0,0.0002115,2]
[386509189,1758327032764,-457.75228467,0.00021154,2]
[386509191,1758327032773,-500.0,0.00021154,2]
[386509193,1758327032783,-518.7942634,0.00021154,2]
[386509195,1758327032792,-500.0,0.00021154,2]
[386509197,1758327032802,-500.0,0.00021154,2]
[386509199,1758327032811,-500.0,0.00021154,2]
[386509201,1758327032822,-500.0,0.00021154,2]
[386509203,1758327032831,-203.86917872,0.00021154,2]
[386509205,1758327032841,-152.11310989,0.00021154,2]
[386509207,1758327032851,-162.49568592,0.00021154,2]
[386509209,1758327032861,-500.0,0.00021154,2]
[386509211,1758327032871,-500.0,0.00021154,2]
[386509213,1758327032881,-500.0,0.00021154,2]
[386509215,1758327032891,-500.0,0.00021154,2]
[386509217,1758327032900,-500.0,0.00021154,2]
[386509218,1758327032910,-500.0,0.00021154,2]
[386509220,1758327032920,-500.0,0.00021154,2]
[386509222,1758327032929,-154.96761109,0.00021154,2]
[386509224,1758327032939,-500.0,0.00021154,2]
[386509226,1758327032949,-500.0,0.00021154,2]
[386509228,1758327032958,-229.02721744,0.00021154,2]
[386509229,1758327032967,-183.68800282,0.00021154,2]
[386509231,1758327032977,-332.20717057,0.00021157,2]
[386509233,1758327033001,-147.79282943,0.00021157,2]
[386509234,1758327033011,-480.0,0.00021157,2]
[386509235,1758327033020,-480.0,0.00021157,2]
[386509236,1758327033030,-480.0,0.00021157,2]
[386509237,1758327033039,-480.0,0.00021157,2]
[386509238,1758327033049,-245.47191704,0.00021157,2]
[386509239,1758327033058,-480.0,0.00021159,2]
[386509240,1758327033068,-480.0,0.00021159,2]
[386509241,1758327033078,-150.0,0.00021159,2]
[386509242,1758327033087,-480.0,0.00021159,2]
[386509243,1758327033097,-480.0,0.00021159,2]
[386509244,1758327033107,-502.55775816,0.00021159,2]
[386509246,1758327033116,-480.0,0.00021159,2]
[386509248,1758327033126,-480.0,0.00021159,2]
[386509250,1758327033135,-480.0,0.00021159,2]
[386509251,1758327033145,-480.0,0.00021159,2]
[386509253,1758327033155,-480.0,0.00021159,2]
[386509255,1758327033164,-480.0,0.00021159,2]
[386509257,1758327033175,-480.0,0.00021159,2]
[386509258,1758327033184,-480.0,0.00021159,2]
[386509260,1758327033195,-480.0,0.00021159,2]
[386509262,1758327033204,-480.0,0.00021159,2]
[386509264,1758327033214,-480.0,0.00021159,2]
[386509266,1758327033224,-480.0,0.00021159,2]
[386509267,1758327033233,-480.0,0.00021159,2]
[386509269,1758327033243,-480.0,0.00021159,2]
[386509271,1758327033252,-480.0,0.00021159,2]
[386509273,1758327033262,-480.0,0.00021159,2]
[386509275,1758327033271,-480.0,0.00021159,2]
[386509277,1758327033281,-504.31799774,0.00021159,2]
[386509279,1758327033292,-480.0,0.00021159,2]
[386509280,1758327033301,-480.0,0.00021159,2]
[386509282,1758327033311,-480.0,0.00021159,2]
[386509284,1758327033320,-480.0,0.00021159,2]
[386509286,1758327033333,-480.0,0.00021159,2]
[386509288,1758327033343,-485.94828062,0.00021159,2]
[386509290,1758327033353,-480.0,0.00021159,2]
[386509292,1758327033363,-613.96,0.00021159,2]
[386509293,1758327033372,-480.0,0.00021159,2]
[386509295,1758327033382,-480.0,0.00021159,2]
[386509297,1758327033391,-480.0,0.00021159,2]
[386509299,1758327033400,-480.0,0.00021159,2]
[386509301,1758327033411,-480.0,0.00021159,2]
[386509303,1758327033421,-480.0,0.00021159,2]
[386509305,1758327033431,-480.0,0.00021159,2]
[386509307,1758327033440,-480.0,0.00021159,2]
[386509308,1758327033450,-480.0,0.00021159,2]
[386509310,1758327033459,-623.02846501,0.00021159,2]
[386509312,1758327033468,-480.0,0.00021159,2]
[386509314,1758327033478,-480.0,0.00021159,2]
[386509316,1758327033487,-480.0,0.00021159,2]
[386509318,1758327033497,-480.0,0.00021159,2]
[386509319,1758327033506,-166.3,0.00021159,2]
[386509321,1758327033515,-480.0,0.00021159,2]
[386509323,1758327033524,-480.0,0.00021159,2]
[386509325,1758327033533,-480.0,0.00021163,2]
[386509327,1758327033543,-480.0,0.00021163,2]
[386509329,1758327033552,-480.0,0.00021163,2]
[386509330,1758327033562,-480.0,0.00021163,2]
[386509332,1758327033571,-480.0,0.00021163,2]
[386509334,1758327033581,-480.0,0.00021163,2]
[386509336,1758327033591,-480.0,0.00021166,2]
[386509338,1758327033602,-152.21553423,0.00021166,2]
[386509340,1758327033612,-206.96162217,0.00021166,2]
[386509342,1758327033621,-151.0,0.00021166,2]
[386509343,1758327033631,-151.0,0.00021166,2]
[386509345,1758327033641,-151.0,0.00021166,2]
[386509347,1758327033651,-500.0,0.00021166,2]
[386509349,1758327033660,-151.0,0.00021166,2]
[386509351,1758327033670,-163.42770127,0.00021166,2]
[386509352,1758327033680,-163.75081278,0.00021166,2]
[386509354,1758327033690,-151.0,0.00021166,2]
[386509356,1758327033699,-532.02252154,0.00021168,2]
[386509358,1758327033709,-480.0,0.00021168,2]
[386509359,1758327033718,-480.0,0.00021168,2]
[386509360,1758327033727,-480.0,0.00021168,2]
[386509361,1758327033737,-480.0,0.00021168,2]
[386509362,1758327033746,-198.60667478,0.00021168,2]
[386509363,1758327033755,-480.0,0.00021168,2]
[386509364,1758327033765,-480.0,0.00021168,2]
[386509365,1758327033774,-480.0,0.00021168,2]
[386509366,1758327033783,-480.0,0.00021168,2]
[386509367,1758327033793,-480.0,0.00021168,2]
[386509368,1758327033802,-417.82555824,0.00021168,2]
[386509369,1758327033812,-480.0,0.00021168,2]
[386509370,1758327033821,-480.0,0.00021168,2]
[386509371,1758327033830,-480.0,0.00021168,2]
[386509372,1758327033840,-480.0,0.00021168,2]
[386509373,1758327033850,-480.0,0.00021168,2]
[386509374,1758327033859,-480.0,0.00021168,2]
[386509375,1758327033868,-480.0,0.00021168,2]
[386509376,1758327033878,-480.0,0.00021168,2]
[386509377,1758327033889,-480.0,0.00021168,2]
[386509378,1758327033898,-480.0,0.00021168,2]
[386509379,1758327033908,-480.0,0.00021168,2]
[386509380,1758327033918,-480.0,0.00021168,2]
[386509381,1758327033927,-480.0,0.00021168,2]
[386509382,1758327033937,-194.95262826,0.00021168,2]
[386509383,1758327033948,-480.0,0.0002117,2]
[386509384,1758327033958,-480.0,0.0002117,2]
[386509385,1758327033968,-306.16442957,0.00021173,2]
[386509386,1758327033978,-465.23206083,0.00021173,2]
[386509387,1758327033987,-500.0,0.00021173,2]
[386509389,1758327033997,-500.0,0.00021173,2]
[386509390,1758327034006,-500.0,0.00021173,2]
[386509391,1758327034020,-500.0,0.00021173,2]
[386509392,1758327034030,-500.0,0.00021173,2]
[386509393,1758327034040,-480.0,0.00021173,2]